Cogmind - Beta 15 --- EXPLORER MODE // 2025.05.23 @ 21:36:34 Player: darlorth Result: Self-destructed Performance ------------- Evolutions (1) 500 Regions Visited (3) 600 Robots Destroyed (20) 100 Value Destroyed (441) 441 Prototype IDs (2) 40 Alien Tech Used (0) 0 Bonus (0) 0 TOTAL SCORE: 1681 Bonus ------- None Cogmind --------- Core Integrity 240/400 Matter 260/300 Energy 100/100 System Corruption 0% Temperature Cool (0) Movement Flying (280) Ox3 Location -9/Materials Parts ------- > --- POWER (1) -------- (None) > --- PROPULSION (4) --- Flight Unit > --- UTILITY (3) ------ Medium Storage Unit Experimental Sensor Array Signal Interpreter > --- WEAPON (2) ------- Grenade Launcher > --- INVENTORY (10) --- Ion Engine Hover Unit Large Matter Pod (150) Weapon Shielding Light Armor Plating Particle Gun Light Assault Rifle Light Cannon Heavy Hammer Peak State ------------ > --- POWER ------------ Ion Engine > --- PROPULSION ------- Flight Unit Flight Unit Flight Unit VTOL Module > --- UTILITY ---------- Medium Storage Unit Experimental Sensor Array Signal Interpreter > --- WEAPON ----------- Heavy Hammer > --- INVENTORY -------- Ion Engine Hover Unit Hover Unit Large Matter Pod Weapon Shielding Light Armor Plating Particle Gun Light Assault Rifle Light Cannon Grenade Launcher [Rating: 20] Favorites ----------- Power Ion Engine Engine Ion Engine Propulsion Light Treads Treads Light Treads Hover Unit Hover Unit Flight Unit Flight Unit Utility Signal Interpreter Device Experimental Sensor Array Storage Medium Storage Unit Processor Signal Interpreter Protection Light Armor Plating Weapon Light Cannon Energy Gun Particle Gun Ballistic Gun Light Assault Rifle Ballistic Cannon Light Cannon Launcher Grenade Launcher Impact Weapon Heavy Hammer Build | -11 -10 -10 -9 ------- Run | Yrd Mat Min Mat Slots Evolved 3 | . 1 . 2 Power . | . . . . Propulsion 2 | . . . 2 Utility 1 | . 1 . . Weapon . | . . . . Parts Attached 21 | 7 9 3 2 Power 1 | 1 . . . Engine 1 | 1 . . . Core . | . . . . Reactor . | . . . . Propulsion 8 | 2 2 2 2 Treads 2 | 2 . . . Leg . | . . . . Wheel . | . . . . Hover 2 | . 2 . . Flight 4 | . . 2 2 Utility 6 | 2 3 1 . Device 2 | 1 . 1 . Storage 1 | . 1 . . Processor 1 | 1 . . . Hackware . | . . . . Protection 2 | . 2 . . Artifact . | . . . . Weapon 6 | 2 4 . . Energy Gun 2 | 1 1 . . Energy Cannon . | . . . . Ballistic Gun 1 | 1 . . . Ballistic Cannon 1 | . 1 . . Launcher 1 | . 1 . . Special Weapon . | . . . . Impact Weapon 1 | . 1 . . Slashing Weapon . | . . . . Piercing Weapon . | . . . . Special Melee Weapon . | . . . . Unidentified Prototypes 2 | . . 1 1 Parts Lost 5 | . . . 5 Power 1 | . . . 1 Propulsion 4 | . . . 4 Utility . | . . . . Weapon . | . . . . Highest Loss Streak 5 | . . . 5 To Critical Strikes . | . . . . Average Backups 7 | 2 6 10 9 Power . | . 1 1 1 Propulsion 1 | . 1 3 1 Utility 2 | 1 1 2 3 Weapon 2 | . 2 3 4 Tool/Special . | . . . . Unused Backups 5 | . 2 1 2 Power 1 | . . . 1 Propulsion 1 | . 1 . . Utility 1 | . . . 1 Weapon 2 | . 1 1 . Tool/Special . | . . . . Average Slot Usage (%) 97 | . 98 100 83 Engine 11 | . 12 12 9 Treads 12 | . 21 . . Hover 8 | . 3 20 . Flight 4 | . . 4 34 Device 1 | . . 2 10 Storage 7 | . 4 12 10 Processor 11 | . 12 12 10 Protection 14 | . 19 9 . Energy Gun 7 | . 13 . . Ballistic Gun 1 | . 1 . . Ballistic Cannon 8 | . 7 12 . Launcher 4 | . 1 12 1 Peak Build Rating 20 | 7 10 17 20 Average Rating 10 | 5 8 10 18 On Entrance 8 | . 7 9 17 Naked Turns . | . . . . Heaviest Build 24 | 9 24 24 19 Greatest Support 40 | 40 40 12 16 Greatest Overweight (x) 3 | . 3 2 2 Average Overweight (x) . | . . 1 . Largest Inventory Capacity 10 | 5 10 10 10 Average Capacity 7 | 5 6 10 10 Most Carried 10 | 5 10 10 10 Average Carried 7 | 3 6 9 9 Final Capacity 10 | 5 10 10 10 Final Carried 10 | 5 10 10 9 Class Distribution -------------------- 100% | Hacker-Mutant Dominant Class ---------------- Hacker-Mutant | -10/Materials Hacker-Mutant | -10/Mines Hacker-Mutant | -9/Materials Resources | -11 -10 -10 -9 ----------- Run | Yrd Mat Min Mat Matter Collected 666 | 226 321 69 50 Remotely . | . . . . Salvage Created 593 | . 562 12 19 Parts 31 | . 21 4 6 Haulers Intercepted 1 | . 1 . . Recyclers Shooed 3 | . 3 . . Parts Field Recycled . | . . . . Retrieved Matter . | . . . . Parts Self-Destructed . | . . . . Prevented . | . . . . Kills | -11 -10 -10 -9 ------- Run | Yrd Mat Min Mat Combat Hostiles Destroyed 16 | . 10 2 4 Guns 6 | . 6 . . Cannons 3 | . 3 . . AOE 6 | . . 2 4 Classes Destroyed 5 | . 5 . . Hauler 1 | . 1 . . Recycler 2 | . 2 . . Watcher 1 | . 1 . . Swarmer 8 | . 2 2 4 Grunt 8 | . 8 . . Best Kill Streak 4 | . 3 2 4 Combat Bots Only 4 | . 2 2 4 Max Kills in Single Turn 4 | . 1 1 4 Gunslinging . | . . . . Exploded 4 | . . 1 4 Melee . | . . . . Uniques/NPCs Destroyed . | . . . . Combat | -11 -10 -10 -9 -------- Run | Yrd Mat Min Mat Hostile Shots Fired 151 | . 41 3 107 Missed 50 | . 10 . 40 Hits 101 | . 31 3 67 Melee 2 | . . . 2 Projectile 99 | . 31 3 65 Damage Taken 695 | . 249 15 431 Core 230 | . 70 . 160 Absorbed by Shields . | . . . . Redirected to Shielding 11 | . 11 . . Ignored by Resistances 456 | . 155 11 290 Core Remaining (%) 86 | 100 . 72 . Volleys Fired 40 | . 37 2 1 Largest 2 | . 2 1 1 Hottest 105 | . 105 30 30 Shots Fired 75 | . 72 2 1 Gun 55 | . 55 . . Cannon 15 | . 15 . . Launcher 5 | . 2 2 1 Special . | . . . . Kinetic 24 | . 24 . . Thermal 46 | . 46 . . Explosive 5 | . 2 2 1 Electromagnetic . | . . . . Robot Hit Streak 22 | . 22 5 6 Robot Miss Streak 2 | . 2 . . Penetration Max . | . . . . Secondary Targets . | . . . . Shots Hit Robots 61 | . 57 2 2 Core Hits 33 | . 24 2 7 Critical Kills . | . . . . Critical Parts Destroyed . | . . . . Critical Strikes 1 | . 1 . . Burn 1 | . 1 . . Melee Attacks 8 | . 2 . 6 Impact 8 | . 2 . 6 Slashing . | . . . . Piercing . | . . . . Sneak Attacks 1 | . . . 1 Combat Hostiles . | . . . . Follow-up Attacks . | . . . . Damage Inflicted 1270 | . 847 99 324 Guns 578 | . 578 . . Cannons 194 | . 194 . . Explosions 402 | . 37 99 266 Melee 88 | . 30 . 58 Ramming 8 | . 8 . . Kinetic 240 | . 240 . . Thermal 532 | . 532 . . Explosive 402 | . 37 99 266 Electromagnetic . | . . . . Impact 88 | . 30 . 58 Slashing . | . . . . Piercing . | . . . . Highest Corruption . | . . . . Average Corruption . | . . . . Corruption Purged . | . . . . Corruption Blocked . | . . . . Overload Shots . | . . . . Overflow Damage . | . . . . Projectiles . | . . . . Explosions . | . . . . Melee . | . . . . Knockbacks 3 | . 3 . . Impact 1 | . 1 . . Kinetic 2 | . 2 . . Secondary . | . . . . Self-Inflicted Damage 21 | . 21 . . Shots 1 | . 1 . . Rammed 4 | . 4 . . Targets Rammed 4 | . 4 . . Kicked . | . . . . Crushed . | . . . . Highest Temperature 291 | . 291 . . Average Temperature 93 | . 93 . . Received Heat Transfer 378 | . 180 . 198 Siege Activations . | . . . . Martial Activations . | . . . . Shielding Activations . | . . . . Robots Disrupted . | . . . . Combat Hostiles . | . . . . Robots Corrupted 1 | . 1 . . Combat Hostiles . | . . . . Parts Fried 1 | . 1 . . Impact Corruptions 1 | . 1 . . Robots Melted 1 | . 1 . . Combat Hostiles 1 | . 1 . . Parts Melted . | . . . . Heat Transferred 1313 | . 1313 . . Parts Sabotaged . | . . . . Parts Stolen . | . . . . Parts Stripped . | . . . . Power Chain Reactions . | . . . . Alert | -11 -10 -10 -9 ------- Run | Yrd Mat Min Mat Maximum Alert Level . | . . . . Low Security (%) 100 | 100 100 100 100 Level 1 . | . . . . Level 2 . | . . . . Level 3 . | . . . . Level 4 . | . . . . Level 5 . | . . . . High Security . | . . . . Max Security . | . . . . Peak Influence 118 | . 55 59 118 Initial . | . . . . Average 5 | . 5 4 6 Influence Increases 491 | . 307 59 125 Destroy 0b10 Robot/C 320 | . 200 40 80 Destroy 0b10 Robot/NC 20 | . 20 . . Destroy Leader 74 | . 54 10 10 Successful Hack 9 | . 9 . . Disable Machine 8 | . 4 . 4 Destroy Structure 45 | . 20 9 16 Lose Combat Pursuer 15 | . . . 15 Influence Decreases 393 | . 307 59 27 Time Decay 373 | . 307 59 7 Lost Part 20 | . . . 20 Squads Dispatched 1 | . 1 . . Investigation 1 | . 1 . . Extermination . | . . . . Reinforcement . | . . . . Assault . | . . . . Garrison . | . . . . Intercept . | . . . . Searches Triggered . | . . . . Construction Impeded . | . . . . Haulers Reinforced . | . . . . Active Scanning Responses . | . . . . Cargo Convoy Interrupts . | . . . . Stealth | -11 -10 -10 -9 --------- Run | Yrd Mat Min Mat Distress Signals 2 | . 1 . 1 Communications Jammed . | . . . . Distress Signals . | . . . . Times Spotted 39 | . 21 2 16 Peak Tracking Total 15 | . 4 2 15 Tactical Retreats 1 | . . . 1 Traps | -11 -10 -10 -9 ------- Run | Yrd Mat Min Mat Traps Triggered . | . . . . Indirectly . | . . . . Trap Hack Attempts . | . . . . Triggered . | . . . . Disarmed 1 | . 1 . . Reprogrammed . | . . . . Reused . | . . . . Traps Extracted . | . . . . Installed . | . . . . Triggered . | . . . . Machines | -11 -10 -10 -9 ---------- Run | Yrd Mat Min Mat Machines Disabled 2 | . 1 . 1 Max in Single Turn 1 | . 1 . 1 Machines Repaired . | . . . . Machines Dismantled . | . . . . Machines Sabotaged . | . . . . Overloaded Fab Kills . | . . . . Hacking | -11 -10 -10 -9 --------- Run | Yrd Mat Min Mat Machines Accessed 5 | . 5 . . Terminals 5 | . 5 . . Fabricators . | . . . . Repair Stations . | . . . . Recycling Units . | . . . . Scanalyzers . | . . . . Garrison Access . | . . . . Total Hacks 10 | . 10 . . Successful 7 | . 7 . . Failed 3 | . 3 . . Catastrophic . | . . . . Database Lockouts . | . . . . Manual 2 | . 2 . . Terminals 10 | . 10 . . Fabricators . | . . . . Repair Stations . | . . . . Recycling Units . | . . . . Scanalyzers . | . . . . Garrison Access . | . . . . Terminal Hacks 7 | . 7 . . Record 2 | . 2 . . Level Access Points 1 | . 1 . . Locate Traps 1 | . 1 . . Disarm Traps 1 | . 1 . . Zone Layout 2 | . 2 . . Fabricator Hacks . | . . . . Repair Station Hacks . | . . . . Recycling Unit Hacks . | . . . . Scanalyzer . | . . . . Garrison Access Hacks . | . . . . Unauthorized Hacks . | . . . . Terminals . | . . . . Fabricators . | . . . . Repair Stations . | . . . . Recycling Units . | . . . . Scanalyzers . | . . . . Garrison Access . | . . . . Data Cores Recovered . | . . . . Used . | . . . . Hacking Detections 2 | . 2 . . Full Trace Events 1 | . 1 . . Feedback Events . | . . . . Feedback Blocked . | . . . . Robot Schematics Acquired . | . . . . Robots Built . | . . . . Authchips . | . . . . Time . | . . . . Total Robot Build Rating . | . . . . Part Schematics Acquired . | . . . . Parts Built . | . . . . Authchips . | . . . . Time . | . . . . Total Part Build Rating . | . . . . Parts Repaired . | . . . . Time . | . . . . Parts Recycled . | . . . . Recycled Matter . | . . . . Retrieved Matter . | . . . . Retrieved Components . | . . . . Parts Scanalyzed . | . . . . Part Schematics Acquired . | . . . . Parts Damaged . | . . . . Bothacking | -11 -10 -10 -9 ------------ Run | Yrd Mat Min Mat Used RIF Installer . | . . . . Robots Hacked . | . . . . Non-combat . | . . . . Combat . | . . . . Robot Hacks Applied . | . . . . Relay Couplers Released . | . . . . Fabnet Peak Effective % . | . . . . Robots Rewired . | . . . . Allies Hacked . | . . . . Hacks Repelled . | . . . . Allies | -11 -10 -10 -9 -------- Run | Yrd Mat Min Mat Total Allies 1 | . . 1 . Largest Group 1 | . . 1 . Highest-Rated Group 31 | . . 31 . Highest-Rated Ally 31 | . . 31 . Total Orders . | . . . . Ally Attacks . | . . . . Total Damage . | . . . . Kills . | . . . . Allies Corrupted . | . . . . Allies Melted . | . . . . Intel | -11 -10 -10 -9 ------- Run | Yrd Mat Min Mat Active Infowar (turns) 353 | 34 12 129 178 Sensors 307 | . . 129 178 ECM 46 | 34 12 . . Robot Analysis Total . | . . . . Derelict Logs Recovered . | . . . . Drone Launches . | . . . . Drone Recoveries . | . . . . Exploration | -11 -10 -10 -9 ------------- Run | Yrd Mat Min Mat Turns Passed 2189 | 93 1260 658 178 Spaces Moved 1386 | 52 719 470 145 Core 7 | 7 . . . Treads 621 | 45 576 . . Legs . | . . . . Wheels . | . . . . Hover 550 | . 143 407 . Flight 208 | . . 63 145 Fastest Speed 29 | 50 116 116 29 Average Speed 137 | 145 151 126 102 Slowest Speed 240 | 160 240 197 197 Overloaded Moves . | . . . . Propulsion Burnouts . | . . . . Robots Hopped 2 | . . . 2 Potential Cave-ins . | . . . . Cave-ins Triggered . | . . . . Exploration Rate (%) 54 | 4 90 94 28 Regions Visited 3 Branch Regions 1 Pre-discovered Areas . | . . . . Known Exits Taken 3 | 1 1 1 . Unknown Exits Taken . | . . . . Scrap Searched 2 | . . 2 . Spaces Dug 4 | . 1 . 3 Terrain Destroyed 46 | . 18 13 15 Melee 4 | . 1 . 3 Projectile . | . . . . AOE 42 | . 17 13 12 Terrain Rammed . | . . . . Walls Destroyed . | . . . . Machines Disabled . | . . . . Actions | -11 -10 -10 -9 --------- Run | Yrd Mat Min Mat Total 1571 | 69 812 529 161 Wait 77 | . 24 53 . Move 1379 | 51 718 469 141 Hop 2 | . . . 2 Pick Up 23 | 11 10 1 1 Fast Attach 5 | 1 3 . 1 Attach 10 | 6 1 . 3 Detach 2 | . . . 2 Swap 12 | . 6 3 3 Drop 9 | . 7 1 1 Fire 40 | . 37 2 1 Melee 8 | . 2 . 6 Ram . | . . . . Kick . | . . . . Crush 4 | . 4 . . Escape Stasis . | . . . . Rewire . | . . . . Trap . | . . . . Miscellaneous . | . . . . Route ------- -11/Scrapyard -10/Materials (discovered 4 exits: *Mat x3 / *Min) -10/Mines (discovered 2 exits: *Mat x2) -9/Materials (discovered 1 exit: *Sto) History --------- Turn | Location | Event 10 | -11/Scrapyard | Identified exit to Materials 10 | -11/Scrapyard | Discovered exit to Materials (range 16) 94 | -11/Scrapyard | Entered Materials 94 | -10/Materials | Evolved 1 slot: Utility x1 182 | -10/Materials | Identified exit to Materials 317 | -10/Materials | Build established: Hacker-Mutant 317 | -10/Materials | Identified exit to Mines 317 | -10/Materials | Discovered exit to Mines (range 7) 1354 | -10/Materials | Entered Mines 1535 | -10/Mines | Discovered exit to Materials (range 9) 1725 | -10/Mines | Received a Mining Laser from a helpful Derelict 1879 | -10/Mines | Found a damaged Exp. Sensor Array with a note attached 1882 | -10/Mines | Found Prototype Device 1883 | -10/Mines | Identified Exp. Sensor Array 1994 | -10/Mines | Discovered exit to Materials (range 7) 2012 | -10/Mines | Entered Materials 2012 | -9/Materials | Evolved 2 slots: Propulsion x2 2164 | -9/Materials | Identified exit to Storage 2164 | -9/Materials | Discovered exit to Storage (range 5) 2190 | -9/Materials | Self-destructed Last Messages --------------- 02161_ W-16 Scout distress signal alerts nearby ally. 02164_ EXIT=FOUND: STORAGE 02164_ K-01 Serf collects debris. 02167_ U-05 Engineer builds a Wall. 02171_ K-01 Serf collects debris. 02173_ Flight Unit destroyed. 02174_ K-01 Serf collects debris. 02180_ VTOL Module destroyed. 02180_ S-10 Pest destroyed. 02180_ Destroyed Flight Unit. 02180_ S-10 Pest destroyed. 02180_ U-05 Engineer lays Concrete. 02181_ K-01 Serf collects debris. 02182_ K-01 Serf destroyed. 02183_ U-05 Engineer lays Concrete. 02184_ Ion Engine destroyed. 02185_ K-01 Serf collects debris. 02185_ U-05 Engineer lays Concrete. 02190_ Flight Unit destroyed. Map ----- +----------------------------------------------------+ | # "T" #?????########### #?????????????????? | | # ####### !"% #?????????????????? | | # = / *% " #?????????????????? | | / ####### = #?????????????????? | | # """ #???#####/###/### #?????????????????? | | #+# """ #???# # #?????????????????? | | " """ #???# # +?????????????????? | | # #???# """ """ + #?????????????????? | | ##########???# """ """ # #?????????????????? | | #????????????# """ """ # #?????????????????? | | #????????????#] # #?????????????????? | | #????????????# [ # #??##?????????????? | | ###????????????############# #?] ?????????????? | | ??????????????????????????##= ## ?????????????? | | ?????????????????????????? [%= # ????????????? | | ?????????????????????????##%[%= """????????????? | | ?????????????????????????? > ""?????????????? | | ?????????#########???????? % "??????????????? | | ????????? #?####### [ ???????????????? | | ????????? #?# %* ????????????????? | | ######## #?# ! """## ######???????????? | | # #?# """## " #???????? | | """ ! # ???# [ """## # #???????? | | """ # ??????? ## # #???????? | | """ # ??????????? ## #? #???????? | | ! # ????????????###@## x#??########???????? | | #######"#####+######### s ####??????????????? | | ???????? | | ######## #########?????????? | | #??????# ####?????????????????? | | ####+###### #?????# #????????????????????? | | ???# ???? #???#[[**!!#????????????????????? | | ""?# ??? !#???#[[**!!#????????????????????? | | "" # #??!!!##???########????????????????????? | | "" # #???###????????????????????????????????? | | # #??????????????????????????????????????? | | "" # "T" #??????????????????????????????????????? | | ???########??????????????????????????????????????? | | ?????????????????????????????????????????????????? | | ?????????????????????????????????????????????????? | | ?????????????????????????????????????????????????? | | ?????????????????????????????????????????????????? | | ?????????????????????????????????????????????????? | | ?????????????????????????????????????????????????? | | ?????????????????????????????????????????????????? | | ?????????????????????????????????????????????????? | | | | | | | | | +----------------------------------------------------+ Best States ------------- Heat Dissipation 28 Energy Generation 10 Energy Capacity 250 Matter Stores 300 Matter Capacity 300 Sight Range 16 Robot Scan Range 20 Terrain Scan Density 10 ECM Strength 1 Armor Coverage 150 Resistance: KI 35 Resistance: TH 35 Resistance: EX 35 Resistance: EM 35 Resistance: I 35 Resistance: S 35 Resistance: P 35 Weapon Shielding 33 Evasion (%) 64 Recoil Reduction 2 Offensive Hacking 20 Item Schematics ----------------- None Robot Schematics ------------------ None Fabricated ------------ Nothing Repaired ---------- Nothing Alien Tech Used ----------------- None Achievements -------------- None Challenges ------------ None Game ------ Seed VisualForceWheel Manual? 0 Play Time 00:21:44 Cumulative 289.4 hours Start 2025.05.23 @ 21:16:38 End 2025.05.23 @ 21:36:34 Sessions 1 Manual Loads 0 Difficulty Explorer Special Mode None Game No. 298 Rogue 121 Adventurer 81 Explorer 96 Win Type - Total 20 Types 18/0/2/0/0/0/0/0/0/0 Lore% 25 Gallery% 61 Achievement% 61 Wizard Run 0 Options --------- Layout 1 ASCII 0 Keyboard 0 Movement Mouse Keybinds 0 Fullscreen 1 Font 24/Smallcaps Map View 50x35 Zoom Use 12% Tactical HUD 1 Map Filters NONE Filters NONE Steam 1 RUN: 70d7dd55-11cc-48c3-b7d4-c974344ddc88